[Event "Tata Steel GCT Blitz 2019"]
[Site "Kolkata"]
[Date "2019.11.25"]
[Round "7"]
[White "Giri, Anish"]
[Black "So, Wesley"]
[Result "0-1"]
[ECO "E08"]
[WhiteElo "2776"]
[BlackElo "2760"]
[Annotator "RC"]
[PlyCount "99"]
[EventDate "2019.11.25"]
[EventType "tourn"]
[EventCountry "IND"]
[SourceTitle "playchess.com"]
[Source "ChessBase"]
[SourceQuality "1"]
[TimeMode "Bronstein"]
[TimeControl "300+3"]

1. d4 {[%emt 0:00:00]} Nf6 {[%emt 0:00:00]} 2. c4 {[%emt 0:00:00]} e6 {[%emt 0:00:00]} 3. Nf3 {[%emt 0:00:00]} d5 {[%emt 0:00:00]} 4. g3 {[%emt 0:00:00]} Bb4+ {[%emt 0:00:00]} 5. Bd2 {[%emt 0:00:00]} Be7 {[%emt 0:00:00]} 6. Bg2 {[%emt 0:00:00]} Nbd7 {[%emt 0:00:00]} 7. O-O {[%emt 0:00:00]} O-O {[%emt 0:00:00]} 8. Qc2 {[%emt 0:00:00]} c6 {[%emt 0:00:00]} 9. Bf4 {[%emt 0:00:00]} b6 {[%emt 0:00:02]} 10. cxd5 {[%emt 0:00:00]} cxd5 {[%emt 0:00:02]} 11. Rc1 {[%emt 0:00:00]} Bb7 {[%emt 0:00:08]} 12. Bc7 {[%emt 0:00:00]} Qe8 {[%emt 0:00:10]} 13. Qb3 {[%emt 0:00:00]} Rc8 {[%emt 0:00:09]} 14. Na3 {[%emt 0:00:00]} Ba6 {[%emt 0:00:23]} 15. Nb5 {[%emt 0:00:00]} Bxb5 {[%emt 0:00:19]} 16. Qxb5 {[%emt 0:00:00]} Nc5 {[%emt 0:00:08]} 17. Qxe8 {[%emt 0:00:00]} Rfxe8 {[%emt 0:00:03]} 18. Bf4 {[%emt 0:00:00]} Na4 {[%emt 0:00:20]} 19. Rxc8 {[%emt 0:00:00]} Rxc8 {[%emt 0:00:03]} 20. Rc1 {[%emt 0:00:00]} Rxc1+ {[%emt 0:00:10]} 21. Bxc1 {[%emt 0:00:00]} Nd7 {[%emt 0:00:03]} 22. Ne1 {[%emt 0:00:08]} b5 {[%emt 0:00:09]} 23. Nd3 {[%emt 0:00:09]} f5 {[%emt 0:00:08]} 24. Bd2 {[%emt 0:00:20]} Nab6 {[%emt 0:00:12]} 25. b3 {[%emt 0:00:10]} Nb8 {[%emt 0:00:06]} 26. Ne5 {[%emt 0:00:28]} N6d7 {[%emt 0:00:08]} 27. Nxd7 {[%emt 0:00:17]} Nxd7 {[%emt 0:00:03]} 28. Bf4 {[%emt 0:00:17]} Kf7 {[%emt 0:00:09]} 29. e3 {[%emt 0:00:09]} Nf6 {[%emt 0:00:27]} 30. Bf1 {[%emt 0:00:08]} Ne4 {[%emt 0:00:12]} 31. Bxb5 {[%emt 0:00:21]} Nc3 {[%emt 0:00:03]} 32. a4 {[%emt 0:00:24]} g5 {[%emt 0:00:08]} 33. Bc7 {[%emt 0:00:36]} Bb4 {[%emt 0:00:08]} 34. Bd3 {[%emt 0:00:06]} a5 {[%emt 0:00:08]} 35. g4 {[%emt 0:00:06]} Kg6 {[%emt 0:00:12]} 36. Kg2 {[%emt 0:00:14]} h5 {[%emt 0:00:03]} 37. gxf5+ {[%emt 0:00:20]} exf5 {[%emt 0:00:03]} 38. Bb5 {[%emt 0:00:03]} h4 {[%emt 0:00:19]} 39. Be8+ {[%emt 0:00:03]} Kh6 {[%emt 0:00:09]} 40. Bd8 {[%emt 0:00:10]} Ne4 {[%emt 0:00:11]} 41. Bc6 {[%emt 0:00:10]} h3+ {[%emt 0:00:50]} 42. Kg1 {[%emt 0:00:48]} Nc3 {[%emt 0:00:00]} 43. Bd7 {[%emt 0:00:19]} Kg6 {[%emt 0:00:00]} 44. Be8+ {[%emt 0:00:03]} Kh6 {[%emt 0:00:00]} 45. Bd7 {[%emt 0:00:08]} Kg6 {[%emt 0:00:00]} 46. Be6 {[%emt 0:00:05]} g4 {[%emt 0:00:00]} 47. Bd7 {[%emt 0:00:07]} Ne4 {[%emt 0:00:00]} 48. Be8+ {[%emt 0:00:03]} Kh6 {[%emt 0:00:00]} 49. Bf7 {[%emt 0:00:03]} Nc3 {[%emt 0:00:00]} 50. Bc7 {[%emt 0:00:02]} 0-1

[Event "Tata Steel GCT Blitz 2019"]
[Site "Kolkata"]
[Date "2019.11.25"]
[Round "7"]
[White "Nakamura, Hikaru"]
[Black "Anand, Viswanathan"]
[Result "1/2-1/2"]
[ECO "C65"]
[WhiteElo "2741"]
[BlackElo "2757"]
[Annotator "ChessBase"]
[PlyCount "65"]
[EventDate "2019.11.25"]
[EventType "tourn"]
[EventCountry "IND"]
[SourceTitle "playchess.com"]
[Source "ChessBase"]
[SourceQuality "1"]
[TimeMode "Bronstein"]
[TimeControl "300+3"]

1. e4 {[%emt 0:00:00]} e5 {[%emt 0:00:00]} 2. Nf3 {[%emt 0:00:00]} Nc6 {[%emt 0:00:00]} 3. Bb5 {[%emt 0:00:00]} Nf6 {[%emt 0:00:00]} 4. d3 {[%emt 0:00:00]} Bc5 {[%emt 0:00:00]} 5. O-O {[%emt 0:00:00]} Nd4 {[%emt 0:00:00]} 6. Be3 {[%emt 0:00:00]} Nxf3+ 7. Qxf3 {[%emt 0:00:00]} Bxe3 {[%emt 0:00:00]} 8. Qxe3 {[%emt 0:00:00]} O-O {[%emt 0:00:00]} 9. d4 {[%emt 0:00:00]} d6 {[%emt 0:00:17]} 10. Be2 {[%emt 0:00:03]} Re8 {[%emt 0:00:14]} 11. Nc3 {[%emt 0:00:03]} c6 {[%emt 0:00:16]} 12. dxe5 {[%emt 0:00:21]} dxe5 {[%emt 0:00:03]} 13. Rad1 {[%emt 0:00:03]} Qb6 {[%emt 0:00:03]} 14. Qxb6 {[%emt 0:00:04]} axb6 {[%emt 0:00:03]} 15. a4 {[%emt 0:00:03]} Be6 {[%emt 0:00:03]} 16. b3 {[%emt 0:00:03]} Kf8 {[%emt 0:00:03]} 17. f3 {[%emt 0:00:03]} Ke7 {[%emt 0:00:03]} 18. Kf2 {[%emt 0:00:03]} Red8 {[%emt 0:00:06]} 19. Ke3 {[%emt 0:00:03]} Nd7 {[%emt 0:00:04]} 20. Nb1 {[%emt 0:00:14]} Nc5 {[%emt 0:00:11]} 21. Rxd8 {[%emt 0:00:03]} Kxd8 {[%emt 0:00:06]} 22. Nd2 {[%emt 0:00:07]} Kc7 {[%emt 0:00:03]} 23. g3 {[%emt 0:00:03]} f6 {[%emt 0:00:03]} 24. f4 {[%emt 0:00:04]} Nd7 {[%emt 0:00:09]} 25. h4 {[%emt 0:00:16]} h6 {[%emt 0:00:08]} 26. h5 {[%emt 0:00:05]} Bf7 {[%emt 0:00:07]} 27. Bg4 {[%emt 0:00:07]} Re8 {[%emt 0:00:10]} 28. Bxd7 {[%emt 0:00:24]} Kxd7 {[%emt 0:00:03]} 29. g4 {[%emt 0:00:03]} exf4+ {[%emt 0:00:06]} 30. Kxf4 {[%emt 0:00:03]} Ke7 {[%emt 0:00:04]} 31. Nf3 {[%emt 0:00:04]} Rd8 {[%emt 0:00:03]} 32. Re1 {[%emt 0:00:13]} Be6 {[%emt 0:00:04]} 33. Rg1 {[%emt 0:00:16]} 1/2-1/2

[Event "Tata Steel GCT Blitz 2019"]
[Site "Kolkata"]
[Date "2019.11.26"]
[Round "16"]
[White "Anand, Viswanathan"]
[Black "Nakamura, Hikaru"]
[Result "1/2-1/2"]
[ECO "C54"]
[WhiteElo "2757"]
[BlackElo "2741"]
[Annotator "RC"]
[PlyCount "42"]
[EventDate "2019.11.25"]
[EventType "tourn"]
[EventCountry "IND"]
[SourceTitle "playchess.com"]
[Source "ChessBase"]
[SourceQuality "1"]
[TimeMode "Bronstein"]
[TimeControl "300+3"]

1. e4 {[%emt 0:00:00]} e5 {[%emt 0:00:00]} 2. Nf3 {[%emt 0:00:00]} Nc6 {[%emt 0:00:00]} 3. Bc4 {[%emt 0:00:00]} Bc5 {[%emt 0:00:00]} 4. c3 {[%emt 0:00:00]} Nf6 {[%emt 0:00:00]} 5. d3 {[%emt 0:00:00]} d6 {[%emt 0:00:00]} 6. O-O {[%emt 0:00:00]} O-O {[%emt 0:00:00]} 7. Bg5 {[%emt 0:00:00]} h6 {[%emt 0:00:00]} 8. Bh4 {[%emt 0:00:00]} a6 {[%emt 0:00:00]} 9. a4 {[%emt 0:00:00]} Ba7 {[%emt 0:00:09]} 10. Nbd2 {[%emt 0:00:00]} g5 {[%emt 0:00:03]} 11. Bg3 {[%emt 0:00:00]} Kg7 {[%emt 0:00:03]} 12. Re1 {[%emt 0:00:27]} Nh7 {[%emt 0:00:03]} 13. b4 {[%emt 0:00:07]} h5 {[%emt 0:00:06]} 14. h3 {[%emt 0:00:09]} h4 {[%emt 0:00:06]} 15. Bh2 {[%emt 0:00:03]} g4 {[%emt 0:00:03]} 16. hxg4 {[%emt 0:00:03]} Bxg4 {[%emt 0:00:35]} 17. b5 {[%emt 0:00:03]} Ne7 {[%emt 0:00:14]} 18. d4 {[%emt 0:00:04]} Ng6 {[%emt 0:00:08]} 19. Be2 {[%emt 0:00:24]} Qf6 {[%emt 0:00:18]} 20. bxa6 {[%emt 0:00:24]} bxa6 {[%emt 0:00:07]} 21. Kh1 {[%emt 0:00:22]} Nf4 {[%emt 0:00:43]} 1/2-1/2